Cogmind - Beta 15 @@@ ROGUE MODE // 2025.08.15 @ 17:19:11 Player: Carter Result: Destroyed by G-67 Veteran with Plasma Rifle Performance ------------- Evolutions (1) 500 Regions Visited (5) 1000 Robots Destroyed (22) 110 Value Destroyed (530) 530 Prototype IDs (2) 40 Alien Tech Used (0) 0 Bonus (761) 761 TOTAL SCORE: 2941 Bonus ------- Follower Combat Kills 295 Met Imprinter 300 Was Imprinted 300 Friendly Fire -134 Cogmind --------- Core Integrity 0/400 Matter 292/300 Energy 93/315 System Corruption 1% Temperature Cool (19) Movement Treading (170) Location -6/Proximity Caves Parts ------- > --- POWER (1) -------- Neutrino Core > --- PROPULSION (4) --- Armored Treads > --- UTILITY (2) ------ Improved Core Shielding > --- WEAPON (2) ------- (None) > --- INVENTORY (5) ---- (None) Peak State ------------ > --- POWER ------------ Angular Momentum Engine > --- PROPULSION ------- Aluminum Leg Aluminum Leg Aluminum Leg Carbon-fiber Leg > --- UTILITY ---------- Mobile Refinery Mk. CCLXVII Hacking Drone Bay > --- WEAPON ----------- Heavy Battle Rifle Slug Cannon > --- INVENTORY -------- Light Nuclear Core Improved Core Shielding Riot Gun Slug Cannon Enhanced Flamer [Rating: 35] Favorites ----------- Power Light Nuclear Core Engine Angular Momentum Engine Power Core Light Nuclear Core Propulsion Aluminum Leg Treads Armored Treads Leg Aluminum Leg Utility Hacking Drone Bay Device Hacking Drone Bay Protection Improved Core Shielding Weapon Minigun Energy Gun Medium Laser Ballistic Gun Minigun Ballistic Cannon Slug Cannon Special Weapon Enhanced Flamer Build | -11 -10 -9 -9 -7 -6 ------- Run | Yrd Mat Mat Min Zio Pro Slots Evolved 2 | . . 2 . . . Power . | . . . . . . Propulsion 2 | . . 2 . . . Utility . | . . . . . . Weapon . | . . . . . . Parts Attached 35 | 7 4 8 2 4 10 Power 7 | 1 1 2 . . 3 Engine 4 | 1 1 1 . . 1 Core 3 | . . 1 . . 2 Reactor . | . . . . . . Propulsion 7 | 2 . 1 2 . 2 Treads 1 | . . . . . 1 Leg 6 | 2 . 1 2 . 1 Wheel . | . . . . . . Hover . | . . . . . . Flight . | . . . . . . Utility 7 | 2 1 1 . 2 1 Device 6 | 2 1 1 . 2 . Storage . | . . . . . . Processor . | . . . . . . Hackware . | . . . . . . Protection 1 | . . . . . 1 Artifact . | . . . . . . Weapon 14 | 2 2 4 . 2 4 Energy Gun 4 | 1 . 1 . . 2 Energy Cannon . | . . . . . . Ballistic Gun 7 | 1 2 3 . 1 . Ballistic Cannon 2 | . . . . 1 1 Launcher . | . . . . . . Special Weapon 1 | . . . . . 1 Impact Weapon . | . . . . . . Slashing Weapon . | . . . . . . Piercing Weapon . | . . . . . . Special Melee Weapon . | . . . . . . Unidentified Prototypes 2 | . . . . 2 . Parts Lost 13 | . . . . . 13 Power 2 | . . . . . 2 Propulsion 5 | . . . . . 5 Utility 1 | . . . . . 1 Weapon 5 | . . . . . 5 Highest Loss Streak 12 | . . . . . 12 To Critical Strikes . | . . . . . . Average Backups 4 | 1 2 3 5 4 4 Power 1 | 1 1 1 3 2 1 Propulsion . | . . . . . . Utility . | . . . . . . Weapon 2 | . 1 1 2 2 2 Tool/Special . | . . . . . . Unused Backups 9 | 1 . 3 . 4 1 Power 3 | . . 1 . 1 1 Propulsion . | . . . . . . Utility 3 | 1 . 1 . 1 . Weapon 3 | . . 1 . 2 . Tool/Special . | . . . . . . Average Slot Usage (%) 94 | . 100 84 89 100 89 Engine 5 | . 14 9 . . 9 Core 5 | . . 1 11 11 . Leg 37 | . 28 29 34 44 35 Device 22 | . 28 22 22 22 21 Energy Gun 1 | . 9 5 . . . Ballistic Gun 16 | . 18 16 22 20 10 Ballistic Cannon 4 | . . . . 1 10 Peak Build Rating 35 | 11 11 15 16 31 35 Average Rating 23 | 5 10 10 15 24 32 On Entrance 13 | . 11 9 15 16 31 Naked Turns . | . . . . . . Heaviest Build 30 | 8 11 13 13 22 30 Greatest Support 45 | 20 20 30 40 40 45 Greatest Overweight (x) . | . . . . . . Average Overweight (x) . | . . . . . . Largest Inventory Capacity 5 | 5 5 5 5 5 5 Average Capacity 5 | 5 5 5 5 5 5 Most Carried 5 | 3 4 5 5 5 5 Average Carried 4 | 1 2 3 5 4 4 Final Capacity 5 | 5 5 5 5 5 5 Final Carried 5 | 2 3 5 5 5 . Class Distribution -------------------- 75% | Scavenger-Mutant 24% | Mutant Dominant Class ---------------- Mutant | -10/Materials Scavenger-Mutant | -9/Materials Mutant | -9/Mines Scavenger-Mutant | -7/Zion Scavenger-Mutant | -6/Proximity Caves Resources | -11 -10 -9 -9 -7 -6 ----------- Run | Yrd Mat Mat Min Zio Pro Matter Collected 817 | 220 117 124 90 26 240 Remotely 126 | . . 36 90 . . Salvage Created 873 | 141 173 219 88 . 252 Parts 50 | 11 11 10 7 . 11 Haulers Intercepted 1 | . 1 . . . . Recyclers Shooed . | . . . . . . Parts Field Recycled . | . . . . . . Retrieved Matter . | . . . . . . Parts Self-Destructed 13 | . . . . . 13 Prevented 3 | . . . . . 3 Kills | -11 -10 -9 -9 -7 -6 ------- Run | Yrd Mat Mat Min Zio Pro Combat Hostiles Destroyed 14 | . 5 3 2 . 4 Guns 12 | . 5 3 2 . 2 Cannons 2 | . . . . . 2 Classes Destroyed 7 | 2 3 1 . . 1 Worker 1 | . . 1 . . . Tunneler 3 | 3 . . . . . Hauler 1 | . 1 . . . . Recycler 2 | 1 . 1 . . . Swarmer 3 | . 3 . . . . Grunt 11 | . 2 3 2 . 4 Mutant 1 | . . . . . 1 Best Kill Streak 3 | 3 3 3 2 . 3 Combat Bots Only 3 | . 3 2 2 . 3 Max Kills in Single Turn 2 | 1 2 1 1 . 1 Gunslinging 1 | . 1 . . . . Exploded . | . . . . . . Melee . | . . . . . . Uniques/NPCs Destroyed . | . . . . . . Combat | -11 -10 -9 -9 -7 -6 -------- Run | Yrd Mat Mat Min Zio Pro Hostile Shots Fired 194 | . 14 39 5 . 136 Missed 69 | . 5 15 2 . 47 Hits 125 | . 9 24 3 . 89 Melee 3 | . . . . . 3 Projectile 122 | . 9 24 3 . 86 Critical Strikes 6 | . . 1 . . 5 Damage Taken 2338 | . 69 297 40 . 1932 Core 422 | . 14 79 14 . 315 Absorbed by Shields . | . . . . . . Redirected to Shielding 17 | . . . . . 17 Core Remaining (%) 97 | 100 94 . . . . Volleys Fired 67 | 11 16 16 4 . 20 Largest 2 | 2 2 2 2 . 2 Hottest 120 | 70 70 88 50 . 120 Shots Fired 133 | 22 31 32 8 . 40 Gun 115 | 22 31 32 8 . 22 Cannon 16 | . . . . . 16 Launcher . | . . . . . . Special 2 | . . . . . 2 Kinetic 92 | 11 16 25 8 . 32 Thermal 35 | 11 15 7 . . 2 Explosive . | . . . . . . Electromagnetic 6 | . . . . . 6 Robot Hit Streak 7 | 3 3 7 4 . 5 Robot Miss Streak 7 | 4 7 3 1 . 5 Penetration Max . | . . . . . . Secondary Targets 3 | . 2 . . . 1 Max Gunslinging Chain 1 | . 1 . . . 1 Shots Hit Robots 76 | 10 15 23 5 . 23 Core Hits 44 | 8 9 9 3 . 15 Critical Kills 1 | . . . . . 1 Critical Parts Destroyed . | . . . . . . Critical Strikes 2 | . . . . . 2 Burn 1 | . . . . . 1 Destroy 1 | . . . . . 1 Melee Attacks . | . . . . . . Impact . | . . . . . . Slashing . | . . . . . . Piercing . | . . . . . . Sneak Attacks . | . . . . . . Combat Hostiles . | . . . . . . Follow-up Attacks . | . . . . . . Damage Inflicted 1385 | 110 155 322 82 . 716 Guns 1022 | 110 155 322 82 . 353 Cannons 220 | . . . . . 220 Explosions 120 | . . . . . 120 Melee . | . . . . . . Ramming . | . . . . . . Kinetic 881 | 34 68 227 82 . 470 Thermal 401 | 76 87 95 . . 143 Explosive . | . . . . . . Electromagnetic 103 | . . . . . 103 Impact . | . . . . . . Slashing . | . . . . . . Piercing . | . . . . . . Highest Corruption 1 | . . . . . 1 Average Corruption 1 | . . . . . 1 Corruption Purged . | . . . . . . Corruption Blocked . | . . . . . . Overload Shots . | . . . . . . Overflow Damage 16 | . . . . . 16 Projectiles . | . . . . . . Explosions 16 | . . . . . 16 Melee . | . . . . . . Knockbacks 3 | . . . . . 3 Impact . | . . . . . . Kinetic 2 | . . . . . 2 Secondary 1 | . . . . . 1 Self-Inflicted Damage 66 | . . . . . 66 Shots 1 | . . . . . 1 Rammed . | . . . . . . Targets Rammed . | . . . . . . Kicked . | . . . . . . Crushed . | . . . . . . Highest Temperature 232 | 90 106 2 3 . 232 Average Temperature 55 | 35 38 2 3 . 74 Received Heat Transfer 991 | . 6 174 24 . 787 Effects 1 | . . . . . 1 Interference 1 | . . . . . 1 Siege Activations . | . . . . . . Martial Activations . | . . . . . . Shielding Activations . | . . . . . . Robots Disrupted . | . . . . . . Combat Hostiles . | . . . . . . Robots Corrupted . | . . . . . . Combat Hostiles . | . . . . . . Parts Fried 1 | . . . . . 1 Impact Corruptions . | . . . . . . Robots Melted . | . . . . . . Combat Hostiles . | . . . . . . Parts Melted . | . . . . . . Heat Transferred 1223 | 222 259 222 . . 520 Parts Sabotaged . | . . . . . . Parts Stolen . | . . . . . . Parts Stripped . | . . . . . . Power Chain Reactions 1 | . . . . . 1 Alert | -11 -10 -9 -9 -7 -6 ------- Run | Yrd Mat Mat Min Zio Pro Maximum Alert Level . | . . . . . . Low Security (%) 100 | 100 100 100 100 . . Level 1 . | . . . . . . Level 2 . | . . . . . . Level 3 . | . . . . . . Level 4 . | . . . . . . Level 5 . | . . . . . . High Security . | . . . . . . Max Security . | . . . . . . Peak Influence 110 | 5 110 45 50 . . Initial 27 | . . 27 . . . Average 25 | . 66 12 15 . . Influence Increases 578 | 20 147 90 50 . 271 Destroy 0b10 Robot/C 420 | . 100 60 40 . 220 Destroy 0b10 Robot/NC 35 | 20 5 10 . . . Destroy Leader 62 | . 12 20 10 . 20 Allied During Kill 31 | . . . . . 31 Lose Combat Pursuer 30 | . 30 . . . . Influence Decreases 578 | 20 80 157 10 40 271 Entered New Map 80 | . . 40 . 40 . Time Decay 370 | 20 80 117 10 . 143 Lost Part 88 | . . . . . 88 Lost Ally 40 | . . . . . 40 Squads Dispatched 4 | . 1 2 . . 1 Investigation . | . . . . . . Extermination . | . . . . . . Reinforcement 3 | . 1 2 . . . Assault 1 | . . . . . 1 Garrison . | . . . . . . Intercept . | . . . . . . Searches Triggered . | . . . . . . Construction Impeded . | . . . . . . Haulers Reinforced . | . . . . . . Active Scanning Responses . | . . . . . . Cargo Convoy Interrupts . | . . . . . . Stealth | -11 -10 -9 -9 -7 -6 --------- Run | Yrd Mat Mat Min Zio Pro Distress Signals . | . . . . . . Communications Jammed . | . . . . . . Distress Signals . | . . . . . . Times Spotted 37 | . 7 11 2 . 17 Peak Tracking Total 7 | . 3 6 2 . 7 Tactical Retreats 1 | . 1 . . . . Traps | -11 -10 -9 -9 -7 -6 ------- Run | Yrd Mat Mat Min Zio Pro Traps Triggered . | . . . . . . Indirectly . | . . . . . . Trap Hack Attempts . | . . . . . . Triggered . | . . . . . . Disarmed . | . . . . . . Reprogrammed . | . . . . . . Reused . | . . . . . . Traps Extracted . | . . . . . . Installed . | . . . . . . Triggered . | . . . . . . Machines | -11 -10 -9 -9 -7 -6 ---------- Run | Yrd Mat Mat Min Zio Pro Machines Disabled 1 | . . . . . 1 Max in Single Turn 1 | . . . . . 1 Machines Repaired . | . . . . . . Machines Dismantled . | . . . . . . Machines Sabotaged . | . . . . . . Overloaded Fab Kills . | . . . . . . Hacking | -11 -10 -9 -9 -7 -6 --------- Run | Yrd Mat Mat Min Zio Pro Machines Accessed . | . . . . . . Terminals . | . . . . . . Fabricators . | . . . . . . Repair Stations . | . . . . . . Recycling Units . | . . . . . . Scanalyzers . | . . . . . . Garrison Access . | . . . . . . Total Hacks . | . . . . . . Successful . | . . . . . . Failed . | . . . . . . Catastrophic . | . . . . . . Database Lockouts . | . . . . . . Manual . | . . . . . . Terminals . | . . . . . . Fabricators . | . . . . . . Repair Stations . | . . . . . . Recycling Units . | . . . . . . Scanalyzers . | . . . . . . Garrison Access . | . . . . . . Terminal Hacks . | . . . . . . Fabricator Hacks . | . . . . . . Repair Station Hacks . | . . . . . . Recycling Unit Hacks . | . . . . . . Scanalyzer . | . . . . . . Garrison Access Hacks . | . . . . . . Unauthorized Hacks . | . . . . . . Terminals . | . . . . . . Fabricators . | . . . . . . Repair Stations . | . . . . . . Recycling Units . | . . . . . . Scanalyzers . | . . . . . . Garrison Access . | . . . . . . Data Cores Recovered . | . . . . . . Used . | . . . . . . Hacking Detections . | . . . . . . Full Trace Events . | . . . . . . Feedback Events . | . . . . . . Feedback Blocked . | . . . . . . Robot Schematics Acquired 2 | . . . . 2 . Robots Built . | . . . . . . Authchips . | . . . . . . Time . | . . . . . . Total Robot Build Rating . | . . . . . . Part Schematics Acquired 14 | . . . . 14 . Parts Built . | . . . . . . Authchips . | . . . . . . Time . | . . . . . . Total Part Build Rating . | . . . . . . Parts Repaired . | . . . . . . Time . | . . . . . . Parts Recycled . | . . . . . . Recycled Matter . | . . . . . . Retrieved Matter . | . . . . . . Retrieved Components . | . . . . . . Parts Scanalyzed . | . . . . . . Part Schematics Acquired . | . . . . . . Parts Damaged . | . . . . . . Bothacking | -11 -10 -9 -9 -7 -6 ------------ Run | Yrd Mat Mat Min Zio Pro Used RIF Installer . | . . . . . . Robots Hacked . | . . . . . . Non-combat . | . . . . . . Combat . | . . . . . . Robot Hacks Applied . | . . . . . . Relay Couplers Released . | . . . . . . Fabnet Peak Effective % . | . . . . . . Robots Rewired . | . . . . . . Allies Hacked . | . . . . . . Hacks Repelled . | . . . . . . Allies | -11 -10 -9 -9 -7 -6 -------- Run | Yrd Mat Mat Min Zio Pro Total Allies 4 | . . . . 4 . Largest Group 4 | . . . . 4 3 Highest-Rated Group 153 | . . . . 153 115 Highest-Rated Ally 40 | . . . . 40 40 Total Orders . | . . . . . . Ally Attacks 18 | . . . . . 18 Total Damage 1081 | . . . . . 1081 Kills 8 | . . . . . 8 Allies Corrupted . | . . . . . . Allies Melted . | . . . . . . Intel | -11 -10 -9 -9 -7 -6 ------- Run | Yrd Mat Mat Min Zio Pro Active Infowar (turns) 475 | 39 217 219 . . . Terrain 475 | 39 217 219 . . . Robot Analysis Total . | . . . . . . Derelict Logs Recovered 2 | . . . . 1 1 Drone Launches 1 | . . . . 1 . Drone Recoveries . | . . . . . . Exploration | -11 -10 -9 -9 -7 -6 ------------- Run | Yrd Mat Mat Min Zio Pro Turns Passed 3249 | 137 217 358 70 1430 1037 Spaces Moved 2436 | 81 131 230 43 1171 780 Core 20 | 7 . . . . 13 Treads 4 | . . . . . 4 Legs 2412 | 74 131 230 43 1171 763 Wheels . | . . . . . . Hover . | . . . . . . Flight . | . . . . . . Fastest Speed 50 | 50 120 120 120 120 50 Average Speed 119 | 113 120 120 120 120 119 Slowest Speed 170 | 120 120 120 120 120 170 Overloaded Moves . | . . . . . . Propulsion Burnouts . | . . . . . . Robots Hopped . | . . . . . . Potential Cave-ins . | . . . . . . Cave-ins Triggered . | . . . . . . Exploration Rate (%) 36 | 5 27 20 16 84 69 Regions Visited 5 Branch Regions 3 Pre-discovered Areas 2 | . . . . 2 . Known Exits Taken . | . . . . . . Unknown Exits Taken 5 | 1 1 1 1 1 . Scrap Searched 5 | . . . 1 1 3 Spaces Dug . | . . . . . . Terrain Destroyed 14 | . . . . . 14 Melee . | . . . . . . Projectile 7 | . . . . . 7 AOE 7 | . . . . . 7 Terrain Rammed . | . . . . . . Walls Destroyed . | . . . . . . Machines Disabled . | . . . . . . Actions | -11 -10 -9 -9 -7 -6 --------- Run | Yrd Mat Mat Min Zio Pro Total 2643 | 103 162 281 55 1197 845 Wait 64 | . 8 12 6 9 29 Move 2431 | 80 130 229 42 1170 780 Hop . | . . . . . . Pick Up 18 | 4 1 7 . 5 1 Fast Attach 14 | 6 1 2 1 1 3 Attach 7 | 1 . . . 1 5 Detach 2 | . 1 1 . . . Swap 19 | . 3 6 1 4 5 Drop 21 | 1 2 8 1 7 2 Fire 67 | 11 16 16 4 . 20 Melee . | . . . . . . Ram . | . . . . . . Kick . | . . . . . . Crush . | . . . . . . Escape Stasis . | . . . . . . Rewire . | . . . . . . Trap . | . . . . . . Miscellaneous . | . . . . . . Route ------- -11/Scrapyard -10/Materials -9/Materials -9/Mines -7/Zion -6/Proximity Caves History --------- Turn | Location | Event 20 | -11/Scrapyard | Discovered new exit (range 15) 138 | -11/Scrapyard | Entered Materials 320 | -10/Materials | Discovered new exit (range 15) 332 | -10/Materials | Build established: Mutant 355 | -10/Materials | Entered another Materials area 355 | -9/Materials | Evolved 2 slots: Propulsion x2 705 | -9/Materials | Discovered new exit (range 7) 713 | -9/Materials | Entered Mines 719 | -9/Mines | Found DCF Scrap (14 items) 773 | -9/Mines | A Derelict revealed a hidden shortcut to a safe place 783 | -9/Mines | Entered Zion 890 | -7/Zion | Given the Hacking Drone Bay 891 | -7/Zion | Found Prototype Device 892 | -7/Zion | Identified Hacking Drone Bay 1005 | -7/Zion | Learned location of Quarantine (-2) 1084 | -7/Zion | Build established: Scavenger-Mutant 1422 | -7/Zion | Met Imprinter 1450 | -7/Zion | Imprinted 1452 | -7/Zion | Declared Zion's savior 1672 | -7/Zion | Learned Factory emergency access door positions 1967 | -7/Zion | Discovered new exit (range 11) 1996 | -7/Zion | Found Prototype Device 1996 | -7/Zion | Identified Mobile Refinery Mk. CCLXVII 2213 | -7/Zion | Entered Proximity Caves 2213 | -6/Proximity Caves | Accompanied by 5 allies 3159 | -6/Proximity Caves | Attracted the attention of an 0b10 outpost 3188 | -6/Proximity Caves | Core integrity fell below 50% 3225 | -6/Proximity Caves | Core integrity fell below 20% 3250 | -6/Proximity Caves | Destroyed by G-67 Veteran with Plasma Rifle Last Messages --------------- 03220_ Destroyed Hvy. Laser. 03221_ G-50 Soldier IFF system glitched. 03223_ Carbon-fiber Leg destroyed. 03223_ Slug penetrates G-50 Soldier. 03223_ Adv. Heat Sink fried. 03223_ G-50 Soldier destroyed. 03225_ Hacking Drone Bay destroyed. 03227_ Hvy. Battle Rifle destroyed. 03228_ Corrupted Carbon-fiber Leg self-destruct mechanism malfunctions. 03230_ G-50 Soldier suffers critical hit (Burn). 03231_ G-50 Soldier heat damages Adv. Heat Sink. 03231_ Mobile Refinery Mk. CCLXVII severed. 03233_ Slug Cannon destroyed. 03235_ Enh. Flamer destroyed. 03242_ Acquired Arm. Treads. 03244_ Critical hit (Burn: +50). 03245_ Acquired Neutrino Core. 03246_ Acquired 69 matter. 03247_ M-28 Smith repairs L-41 Fighter. Map ----- +----------------------------------------------------+ | ?????????????????????????????????????????????????? | | ?????????????????????????????????????????????????? | | ?????????????????????????????????????????????????? | | ???####??????????????????????????????????????????? | | #### ##?????????????????????????????????????????? | | ##????????????????????????????????????????? | | #####????????????????????????????????????? | | ### #????????????????????????????????????? | | #?## !| ##???????????????????????????????????? | | #??# % ##?????#????????????????????????????? | | ???# ! ! ##??? #????????????????????????????? | | #### ## % #?? #????????????????????????????? | | ### % #?# #????????????????????????????? | | ##### #?## ## #?????????????????????????????? | | ????## #?# #?????????????????????????????? | | ?###?# ## ###??????????? #####???????????? | | ## ## ##????????????? " ????????????? | | # ####?????????????? "%"?????????????? | | ##????????????????? #??????????????? | | ####??????????????? #??????????????? | | ## #??????????????# #??????????????? | | ???## ##????####????##; ####???????????? | | ??### ##???## ######;# ###?????????? | | ?## ##??# ??????????? | | #?## ! ;;;##??????????????? | | ### @ l ; "#??????????????? | | ## ## #### = %;% "#??????????????? | | ### ### #### ##""[; ;% "#??????????????? | | ####??# ??# #??# #" ; % "#??????????????? | | ?????# ??# #??# "=; g#??????????????? | | ?????# ??# #??## %%#" g#?? #??????????? | | ####### ??# #??## ## %"###g### #???????????? | | ## ## ?## #### #### ! #???????????? | | #### #??## #???????????? | | #?# ##???## #?????? | | # ##?# ##?????# #?????? | | ## #### #????? #????? | | ?# ## ##??? ????? | | ?# #?? ### ????? | | ?## ##?## ###??# ## ????? | | #?## ### #########???## #??????# ##??###?????? | | ##?#####?####????????????##????????###???????????? | | #???????????????????????????????????????????????? | | #???????????????????????????????????????????????? | | #???????????????????????????????????????????????? | | ##???????????????????????????????????????????????? | | ?????????????????????????????????????????????????? | | ?????????????????????????????????????????????????? | | ?????????????????????????????????????????????????? | | ?????????????????????????????????????????????????? | +----------------------------------------------------+ Best States ------------- Heat Dissipation 38 Energy Generation 19 Energy Capacity 315 Matter Stores 300 Matter Capacity 300 Sight Range 16 Terrain Scan Range 16 Terrain Scan Density 10 Core Shielding 30 Evasion (%) 55 Recoil Reduction 1 Authchip Count 1 Item Schematics ----------------- Coolant Injector | -7/Zion | Archive Adv. Heat Sink | -7/Zion | Archive Antigrav System | -7/Zion | Archive Imp. EM Pulse Cannon | -7/Zion | Archive Hvy. Laser | -7/Zion | Archive Imp. Trap Scanner | -7/Zion | Archive Imp. Hacking Suite | -7/Zion | Archive Imp. Trap Extractor | -7/Zion | Archive Plasma Rifle | -7/Zion | Archive Recalibrator | -7/Zion | Archive Neutrino Core | -7/Zion | Archive Hrd. Heavy Armor Plating | -7/Zion | Archive Lgt. Fission Core | -7/Zion | Archive Energy Filter | -7/Zion | Archive Robot Schematics ------------------ K-01 Serf | -7/Zion | Archive R-06 Scavenger | -7/Zion | Archive Fabricated ------------ Nothing Repaired ---------- Nothing Alien Tech Used ----------------- None Achievements -------------- Backstab Robot Respite The One Tourist Use The Force Challenges ------------ None Game ------ Seed ArmorChromaticTerrabomb Manual? 0 Play Time 00:35:15 Cumulative 5.8 hours Start 2025.08.15 @ 16:45:35 End 2025.08.15 @ 17:19:11 Sessions 1 Manual Loads 0 Difficulty Rogue Special Mode None Game No. 7 Rogue 7 Adventurer 0 Explorer 0 Win Type - Total 0 Types 0/0/0/0/0/0/0/0/0/0 Lore% 1 Gallery% 12 Achievement% 13 Wizard Run 0 Options --------- Layout 2 ASCII 0 Keyboard 1 Movement Vi Keybinds 0 Fullscreen 1 Font 24/Smallcaps Map View 25x22 Zoom Use 73% Tactical HUD 1 Map Filters NONE Filters NONE Steam 1 RUN: 19570b84-ce3c-407e-b942-34097b6589c1